{"text_format":"1","workbook":"xlsx","n_sheets":1,"sheets":["Anlage A  Rechnungsaufstellung"],"not_rendered":{"charts":0,"images":0,"macros":1,"external_links":0,"defined_names":0,"comments":0,"pivot_tables":0},"unopened":[],"bounds":{"document_bytes":16777216,"sheet_cells":100000,"rows_first":2000,"rows_last":500,"rows_between":2000,"halvings":0,"cell_chars":16384,"cell_head_chars":4096},"cells_cut":0,"cells_raw":0,"read":"whole","date_system":"1900"}

{"sheet":"Anlage A  Rechnungsaufstellung","index":0,"n_rows":182,"n_cols":11,"rows_kept":182,"cut":false,"hidden":false,"merged":[[6,8,7,8],[6,9,7,9],[0,0,0,10],[7,3,7,4],[6,2,7,2],[6,0,7,0],[6,1,7,1],[6,5,7,5],[6,6,7,6],[6,7,7,7],[3,5,3,6],[4,5,4,6],[50,2,50,6],[45,2,45,6],[90,0,90,10],[48,7,49,7],[48,8,49,8],[48,9,49,9],[49,3,49,4],[48,0,49,0],[48,1,49,1],[48,2,49,2],[48,5,49,5],[48,6,49,6],[46,0,46,10],[88,2,89,6],[88,7,89,7],[88,8,89,8],[92,0,93,0],[92,1,93,1],[92,2,93,2],[92,5,93,5],[92,6,93,6],[139,9,140,9],[140,3,140,4],[181,2,182,6],[92,7,93,7],[92,8,93,8],[92,9,93,9],[93,3,93,4],[94,2,94,6],[181,7,182,7],[181,8,182,8],[135,2,136,6],[135,7,136,7],[135,8,136,8],[141,2,141,6],[137,0,137,10],[139,0,140,0],[139,8,140,8],[139,1,140,1],[139,2,140,2],[139,5,140,5],[139,6,140,6],[139,7,140,7]]}
["Anlage A zum Antrag auf Ausstellung einer Bescheinigung gemäß §§ 7i, 10f, 11b EStG\n"]
["Rechnungsaufstellung",null,null,null,null,null,null,null,"Blatt",null,{"$f":"_xlfn.SHEET()","v":1}]
[]
[null,"Beginn der Baumaßnahme"]
[null,"Abschluss der Baumaßnahme"]
[]
["lfd. Nr. ","Rechnungs-datum","Ausführende Firma/Art der Arbeiten/ Bauteil/Verwendungszweck Material","Beginn ","Abschluss ","Rechnungs-betrag in EUR","Zahlungs-datum","tatsächlicher Zahlungsbetrag \nin EUR","Im Zahlbetrag enthalt. Aufwend. für Außen-anlagen","Art der Außenanlage","Prüf-vermerk "]
[null,null,null,"der Baumaßnahme",null,null,null,null,null,null,"(von UDB auszufüllen)"]
[1]
[2]
[3]
[4]
[5]
[6]
[7]
[8]
[9]
[10]
[11]
[12]
[13]
[14]
[15]
[16]
[17]
[18]
[19]
[20]
[21]
[22]
[23]
[24]
[25]
[26]
[27]
[28]
[29]
[30]
[31]
[32]
[33]
[34]
[35]
[36]
[37]
[null,null,"Gesamtsumme / Übertrag EUR",null,null,null,null,{"$f":"SUM(H9:H45)","v":0},{"$f":"SUM(I9:I45)","v":0}]
["Anlage A zum Antrag auf Ausstellung einer Bescheinigung gemäß §§ 7i, 10f, 11b EStG\n"]
["Rechnungsaufstellung",null,null,null,null,null,null,null,"Blatt",null,{"$f":"K2+1","v":2}]
["lfd. Nr. ","Rechnungs-datum","Ausführende Firma/Art der Arbeiten/ Bauteil/Verwendungszweck Material","Beginn ","Abschluss ","Rechnungs-betrag in EUR","Zahlungs-datum","tatsächlicher Zahlungsbetrag \nin EUR","Im Zahlbetrag enthalt. Aufwend. für Außen-anlagen","Art der Außenanlage","Prüf-vermerk "]
[null,null,null,"der Baumaßnahme",null,null,null,null,null,null,"(von UDB auszufüllen)"]
[null,null,"Übertrag Vorblatt EUR",null,null,null,null,{"$f":"H46","v":0},{"$f":"I46","v":0}]
[38]
[39]
[40]
[41]
[42]
[43]
[44]
[45]
[46]
[47]
[48]
[49]
[50]
[51]
[52]
[53]
[54]
[55]
[56]
[57]
[58]
[59]
[60]
[61]
[62]
[63]
[64]
[65]
[66]
[67]
[68]
[69]
[70]
[71]
[72]
[73]
[74]
[null,null,"Gesamtsumme / Übertrag EUR",null,null,null,null,{"$f":"SUM(H51:H88)","v":0},{"$f":"SUM(I51:I88)","v":0}]
[]
["Anlage A zum Antrag auf Ausstellung einer Bescheinigung gemäß §§ 7i, 10f, 11b EStG\n"]
["Rechnungsaufstellung",null,null,null,null,null,null,null,"Blatt",null,3]
["lfd. Nr. ","Rechnungs-datum","Art der Arbeiten / Gewerk / Bauteil / Verwendungszweck von Material","Beginn ","Abschluss ","Rechnungs-betrag in EUR","Zahlungs-datum","tatsächlicher Zahlungs-betrag \nin EUR","Im Zahlbetrag enthalt. Aufwend. für Außen-anlagen","Art der Außenanlage","Prüf-vermerk "]
[null,null,null,"der Baumaßnahme",null,null,null,null,null,null,"(von UDB auszufüllen)"]
[null,null,"Übertrag Vorblatt EUR",null,null,null,null,{"$f":"H89","v":0},{"$f":"I89","v":0}]
[75]
[76]
[77]
[78]
[79]
[80]
[81]
[82]
[83]
[84]
[85]
[86]
[87]
[88]
[89]
[90]
[91]
[92]
[93]
[94]
[95]
[96]
[97]
[98]
[99]
[100]
[101]
[102]
[103]
[104]
[105]
[106]
[107]
[108]
[109]
[110]
[111]
[112]
[113]
[114]
[null,null,"Gesamtsumme / Übertrag EUR",null,null,null,null,{"$f":"SUM(H95:H135)","v":0},{"$f":"SUM(I95:I135)","v":0}]
[]
["Anlage A zum Antrag auf Ausstellung einer Bescheinigung gemäß §§ 7i, 10f, 11b EStG\n"]
["Rechnungsaufstellung",null,null,null,null,null,null,null,"Blatt",null,4]
["lfd. Nr. ","Rechnungs-datum","Art der Arbeiten / Gewerk / Bauteil / Verwendungszweck von Material","Beginn ","Abschluss ","Rechnungs-betrag in EUR","Zahlungs-datum","tatsächlicher Zahlungs-betrag \nin EUR","Im Zahlbetrag enthalt. Aufwend. für Außen-anlagen","Art der Außenanlage","Prüf-vermerk "]
[null,null,null,"der Baumaßnahme",null,null,null,null,null,null,"(von UDB auszufüllen)"]
[null,null,"Übertrag Vorblatt EUR",null,null,null,null,{"$f":"H136","v":0},{"$f":"I136","v":0}]
[{"$f":"A135+1","v":115}]
[{"$f":"A143+1","v":116}]
[{"$f":"A144+1","v":117}]
[118]
[119]
[120]
[121]
[122]
[123]
[124]
[125]
[126]
[127]
[128]
[129]
[130]
[131]
[132]
[133]
[134]
[135]
[136]
[137]
[138]
[139]
[140]
[141]
[142]
[143]
[144]
[145]
[146]
[147]
[148]
[149]
[150]
[151]
[152]
[153]
[null,null,"Gesamtsumme / Übertrag EUR",null,null,null,null,{"$f":"SUM(H142:H181)","v":0},{"$f":"SUM(I142:I181)","v":0}]